bitfinex-derivatives/quotes_SOLF0:USTF0_20240816
["timestamp","ask_amount","ask_price","bid_price","bid_amount"]
[1723781038497,2.4603,142.24,142.19,2.6373]
[1723781040389,2.4604,142.23,142.19,0.1762]
[1723781041098,2.4606,142.22,142.19,0.1762]
[1723781041598,2.4605,142.23,142.19,0.1762]
[1723781042491,2.4605,142.23,142.19,2.6373]
[1723781045197,2.4603,142.24,142.19,2.6373]
[1723781045804,2.4604,142.23,142.19,2.6373]
[1723781046108,4.56,142.25,142.21,2.4606]
[1723781046401,14.27141595,142.26,142.22,0.05352339]
[1723781046603,10.8,142.26,142.22,0.05352339]
[1723781047200,2.4602,142.25,142.22,0.05352339]
[1723781057711,14.29792688,142.26,142.22,0.05352339]
[1723781057907,10.8,142.26,142.22,0.05352339]
[1723781058203,2.4602,142.25,142.22,0.05352339]
[1723781058411,3.54078512,142.24,142.22,0.05352339]
[1723781058605,6.00108512,142.24,142.22,0.05352339]
[1723781058811,2.4603,142.24,142.22,0.05352339]
[1723781059199,6.05759126,142.24,142.22,0.05352339]
[1723781059505,2.4601,142.25,142.22,0.05352339]
[1723781066921,2.4603,142.24,142.22,0.05352339]
[1723781067922,2.4604,142.23,142.22,0.05352339]
[1723781069720,2.4603,142.24,142.22,0.05352339]
[1723781070326,2.4604,142.23,142.22,0.05352339]
[1723781070528,5.90945331,142.23,142.22,0.05352339]
[1723781070827,2.4604,142.23,142.22,0.05352339]
[1723781071224,5.99454567,142.23,142.22,0.05352339]
[1723781078634,7.0003,142.24,142.22,0.05352339]
[1723781079132,10.54323891,142.24,142.22,0.05352339]
[1723781082333,10.54323891,142.24,142.22,0.22972339]
[1723781083236,4.54,142.24,142.22,0.22972339]
[1723781085138,7.0002,142.24,142.22,0.22972339]
[1723781091238,4.54,142.24,142.22,0.22972339]
[1723781092345,15.34,142.24,142.22,0.22972339]
[1723781093149,17.8003,142.24,142.22,0.22972339]
[1723781095950,4.54,142.24,142.22,0.22972339]
[1723781096255,6.03091474,142.25,142.22,0.22972339]
[1723781096448,2.4601,142.25,142.22,0.22972339]
[1723781096948,6.05447958,142.25,142.22,0.22972339]
[1723781101843,3.59437958,142.25,142.22,0.22972339]
[1723781102044,2.4599,142.26,142.22,0.22972339]
[1723781102248,3.51195537,142.25,142.22,0.22972339]
[1723781102957,2.4599,142.26,142.22,0.22972339]
[1723781103146,5.93388449,142.26,142.22,0.22972339]
[1723781103343,2.4604,142.24,142.22,0.22972339]
[1723781103651,3.47398449,142.26,142.22,0.22972339]
[1723781103852,2.4601,142.25,142.22,0.22972339]
[1723781104253,2.4601,142.25,142.22,0.05352339]
[1723781104559,10.8,142.25,142.22,0.05352339]
[1723781104856,10.8,142.24,142.22,0.05352339]
[1723781105248,4.54,142.23,142.14,1.2594]
[1723781105455,4.54,142.23,142.05,62.86951933]
[1723781105456,10.8,142.15,142.1,1.2811]
[1723781105757,16.72709493,142.15,142.1,3.7437]
[1723781106351,0.04761469,142.14,142.11,0.05001276]
[1723781107156,2.50961469,142.14,142.11,0.05001276]
[1723781107653,0.04761469,142.14,142.11,0.05001276]
[1723781107854,0.04761469,142.14,142.11,2.51251276]
[1723781108752,0.04761469,142.14,142.11,0.05001276]
[1723781110758,10.84761469,142.14,142.11,0.05001276]
[1723781111455,2.4621,142.13,142.11,0.05001276]
[1723781112960,7.04961469,142.14,142.11,0.05001276]
[1723781113357,2.50961469,142.14,142.11,0.05001276]
[1723781115854,0.04761469,142.14,142.11,2.51251276]
[1723781116955,0.04761469,142.14,142.11,0.05001276]
[1723781118058,4.54,142.17,142.13,10.8]
[1723781118262,3.55734609,142.21,142.16,10.8]
[1723781118458,10.8,142.21,142.14,12.0387]
[1723781118663,2.4611,142.19,142.15,2.4617]
[1723781119164,5.89803237,142.2,142.16,2.5143646]
[1723781120464,2.4613,142.18,142.16,0.0527646]
[1723781120660,10.8,142.19,142.16,0.0527646]
[1723781120965,3.43703237,142.2,142.16,0.0527646]
[1723781120966,2.4614,142.18,142.16,0.0527646]
[1723781121157,13.2614,142.18,142.16,0.0527646]
[1723781121358,2.4614,142.18,142.16,0.0527646]
[1723781121762,13.2614,142.18,142.16,0.0527646]
[1723781125369,2.4614,142.17,142.16,0.0527646]
[1723781125565,13.2614,142.17,142.16,0.0527646]
[1723781133074,2.4619,142.15,142.11,0.1762]
[1723781133274,10.8,142.14,142.11,0.1762]
[1723781134074,10.85182631,142.14,142.11,0.2277463]
[1723781136379,13.31382631,142.14,142.11,0.2277463]
[1723781137878,2.4622,142.13,142.11,0.2277463]
[1723781142181,2.4623,142.12,142.11,0.2277463]
[1723781142378,4.54,142.12,142.01,10.8]
[1723781142579,10.8,142.07,142.01,10.8]
[1723781142878,10.8,142.07,142.03,3.7185]
[1723781143478,10.8,142.07,142.04,0.05402478]
[1723781143675,0.05205667,142.06,142.04,0.05402478]
[1723781144085,0.05205667,142.06,142.04,2.51762478]
[1723781146883,0.05205667,142.06,142.04,0.05402478]
[1723781149897,4.54,142.1,142.05,10.8]
[1723781150089,4.54,142.1,142.05,12.1196]
[1723781150390,14.33058994,142.12,142.05,12.1196]
[1723781150598,10.8,142.12,142.05,12.1196]
[1723781151092,0.04891542,142.1,142.07,0.05295354]
[1723781151283,0.04891542,142.1,142.07,2.51615354]
[1723781152393,2.51161542,142.1,142.07,0.05295354]
[1723781153286,0.04891542,142.1,142.07,2.51605354]
[1723781155493,0.04891542,142.1,142.07,0.05295354]
[1723781156385,2.51161542,142.1,142.07,0.05295354]
[1723781158492,2.4629,142.09,142.07,0.05295354]
[1723781158992,2.463,142.08,142.07,0.05295354]
[1723781160595,15.34,142.09,142.01,1.3341]
[1723781160790,10.8,142.05,142.01,1.3341]
[1723781161192,17.8036,142.05,142.0,2.4644]
[1723781161399,17.8036,142.05,141.97,10.8]
[1723781161599,4.54,142.05,142.02,2.4639]
[1723781161900,0.04913548,142.05,142.02,2.4639]
[1723781162500,2.51273548,142.05,142.0,2.51803718]
[1723781162797,0.04913548,142.05,142.0,0.05383718]
[1723781163798,2.4638,142.04,142.0,2.51823718]
[1723781167701,10.84913548,142.05,142.0,2.51823718]
[1723781167702,13.264,142.02,142.0,0.05383718]
[1723781170200,2.4639,142.03,142.0,0.05383718]
[1723781171602,4.54,142.04,142.0,0.05383718]
[1723781171897,0.04913548,142.05,142.0,10.85383718]
[1723781172106,0.04913548,142.05,142.03,2.4637]
[1723781172497,0.04913548,142.05,142.04,2.4637]
[1723781173803,0.04913548,142.05,142.03,2.51668173]
[1723781174007,0.04913548,142.05,142.03,0.05288173]
[1723781174398,0.04913548,142.05,142.03,2.51678173]
[1723781176801,0.04913548,142.05,142.03,0.05288173]
[1723781177303,0.04913548,142.05,142.03,2.51668173]
[1723781180803,0.04913548,142.05,142.03,0.05288173]
[1723781181807,2.51273548,142.05,142.03,0.05288173]
[1723781185011,0.04913548,142.05,142.03,0.05288173]
[1723781185508,0.04913548,142.05,142.03,2.51678173]
[1723781189011,0.04913548,142.05,142.04,2.4637]
[1723781197917,0.04913548,142.05,142.04,13.2637]
[1723781198221,4.52,142.13,142.07,2.4631]
[1723781198222,10.8,142.12,142.07,2.4631]
[1723781198517,2.4627,142.1,142.07,2.4631]
[1723781199315,2.4625,142.11,142.07,2.4631]
[1723781199622,0.05362229,142.1,142.07,2.5122126]
[1723781200519,0.05362229,142.1,142.09,2.4628]
[1723781200717,10.8,142.18,142.09,10.8]
[1723781200923,10.8,142.18,142.09,4.52]
[1723781201126,3.55723799,142.21,142.11,10.8]
[1723781201321,10.8,142.19,142.12,10.8]
[1723781201624,13.2612,142.19,142.14,2.4618]
[1723781201826,2.5922,142.26,142.15,10.8]
[1723781202021,10.8,142.23,142.15,10.8]
[1723781202225,2.4605,142.23,142.18,2.5152722]
[1723781202417,2.4605,142.23,142.18,0.0540722]
[1723781202823,2.4606,142.22,142.18,2.5152722]
[1723781203027,10.8,142.21,142.18,0.0540722]
[1723781203327,10.8,142.19,142.18,0.0540722]
[1723781203719,10.8,142.19,142.13,1.2988]
[1723781204020,10.8,142.16,142.13,1.2988]
[1723781204618,2.4613,142.18,142.13,1.2988]
[1723781204823,10.8,142.17,142.12,73.25224729]
[1723781205027,10.85264748,142.17,142.14,0.04881847]
[1723781205216,0.05264748,142.17,142.14,0.04881847]
[1723781205919,0.05264748,142.17,142.14,2.51061847]
[1723781207822,0.05264748,142.17,142.14,0.04881847]
[1723781211533,27.02,142.16,142.14,0.04881847]
[1723781212124,2.4618,142.15,142.14,0.04881847]
[1723781212325,27.02,142.16,142.07,1.333]
[1723781212527,3.59985682,142.18,142.07,1.333]
[1723781212532,27.02,142.13,142.07,1.333]
[1723781212733,27.02,142.13,142.09,2.4628]
[1723781213431,0.04657447,142.12,142.1,0.05136482]
[1723781214640,29.35247447,142.13,142.1,0.05136482]
[1723781215037,26.89037447,142.13,142.1,0.05136482]
[1723781215938,26.94297791,142.13,142.1,0.05136482]
[1723781216242,2.4623,142.12,142.1,0.05136482]
[1723781216444,26.94297791,142.13,142.1,0.05136482]
[1723781216739,29.4825,142.11,142.1,0.05136482]
[1723781216939,27.02,142.11,142.02,5.8468]
[1723781217137,27.02,142.09,142.02,5.8468]
[1723781217739,29.4829,142.09,142.04,2.4636]
[1723781217934,29.4829,142.09,142.05,0.048317]
[1723781218134,0.0455471,142.08,142.05,0.048317]
[1723781219146,4.5655471,142.08,142.05,0.048317]
[1723781220343,4.52,142.07,142.05,0.048317]
[1723781224144,31.54,142.07,142.05,0.048317]
[1723781224636,35.00955797,142.07,142.05,0.048317]
[1723781225038,2.4633,142.06,142.05,0.048317]
[1723781225641,2.4633,142.06,142.01,2.4642]
[1723781225642,2.4635,142.05,142.01,2.4642]
[1723781225847,29.4835,142.05,142.01,2.4642]
[1723781226748,0.0459377,142.04,142.02,0.04696548]
[1723781230657,0.0459377,142.04,142.02,2.51096548]
[1723781233551,0.0459377,142.04,142.03,2.4639]
[1723781246768,0.0459377,142.04,142.03,13.2739]
[1723781246975,4.52,142.11,142.06,2.4632]
[1723781247264,228.0,142.21,142.04,10.81]
[1723781247265,15.33,142.12,142.04,10.81]
[1723781247470,15.33,142.12,142.06,10.81]
[1723781247671,10.81,142.15,142.07,10.81]
[1723781247865,1.2483,142.19,142.13,2.462]
[1723781248171,10.81,142.17,142.13,2.462]
[1723781248368,10.85707394,142.17,142.15,0.05023059]
[1723781248773,13.31867394,142.17,142.15,0.05023059]
[1723781248972,0.04707394,142.17,142.15,0.05023059]
[1723781252075,0.04707394,142.17,142.15,2.51203059]
[1723781252465,0.04707394,142.17,142.15,0.05023059]
[1723781252670,0.04707394,142.17,142.16,2.4616]
[1723781254373,27.02,142.25,142.15,27.07023059]
[1723781254574,4.0048,142.3,142.15,28.3428]
[1723781254878,29.4802,142.25,142.15,31.85286339]
[1723781255373,0.05298541,142.21,142.2,2.4609]
[1723781255578,29.4802,142.25,142.19,0.05123702]
[1723781255878,0.05340942,142.22,142.19,0.05123702]
[1723781256774,0.05340942,142.22,142.21,2.4607]
[1723781261883,0.05340942,142.22,142.19,0.05123702]
[1723781262274,0.05340942,142.22,142.21,2.4607]
[1723781264980,0.05340942,142.22,142.19,0.05123702]
[1723781265787,0.05340942,142.22,142.2,2.4609]
[1723781272885,0.05340942,142.22,142.21,2.4607]
[1723781280507,0.05340942,142.22,142.2,2.4609]
[1723781281590,0.05340942,142.22,142.19,2.51223702]
[1723781281793,0.05340942,142.22,142.19,0.05123702]
[1723781282391,0.05340942,142.22,142.19,2.51233702]
[1723781283191,0.05340942,142.22,142.2,2.4609]
[1723781283787,0.05340942,142.22,142.19,2.51223702]
[1723781284389,0.05340942,142.22,142.21,2.4607]
[1723781285208,0.05340942,142.22,142.19,10.85123702]
[1723781286690,0.05340942,142.22,142.21,2.4607]
[1723781287392,0.05340942,142.22,142.2,2.4609]
[1723781287598,0.05340942,142.22,142.19,0.05123702]
[1723781287599,0.05340942,142.22,142.19,10.85123702]
[1723781288300,0.05340942,142.22,142.21,2.4607]
[1723781292503,0.05340942,142.22,142.2,2.4609]
[1723781293597,0.05340942,142.22,142.19,0.05123702]
[1723781293997,2.51410942,142.22,142.19,2.51233702]
[1723781295002,0.05340942,142.22,142.2,2.4609]
[1723781295702,0.05340942,142.22,142.19,2.51223702]
[1723781296702,0.05340942,142.22,142.2,2.4609]
[1723781298202,0.05340942,142.22,142.19,2.51233702]
[1723781298799,10.85340942,142.22,142.19,0.05123702]
[1723781299306,2.4609,142.21,142.19,0.05123702]
[1723781302805,2.4609,142.21,142.19,0.22743702]
[1723781307412,2.4609,142.2,142.19,0.22743702]
[1723781307721,17.7609,142.2,142.19,0.22743702]
[1723781307918,6.9609,142.2,142.19,0.22743702]
[1723781319227,2.4616,142.17,142.13,2.4621]
[1723781320025,4.5,142.2,142.12,10.8]
[1723781320331,0.04483029,142.17,142.15,0.04846607]
[1723781322331,2.50633029,142.17,142.15,0.04846607]
[1723781326528,2.50633029,142.17,142.07,4.5]
[1723781326529,10.8,142.16,142.07,4.5]
[1723781326729,10.8,142.14,142.07,10.8]
[1723781327521,10.8,142.11,142.09,0.05281768]
[1723781327727,0.05229329,142.12,142.09,0.05281768]
[1723781327728,15.3,142.1,142.09,0.05281768]
[1723781328527,17.7628,142.1,142.09,0.05281768]
[1723781328732,17.7628,142.1,142.02,1.286]
[1723781328733,15.3,142.1,142.02,1.286]
[1723781328934,10.8,142.08,142.02,1.286]
[1723781329124,2.4633,142.07,142.02,3.75]
[1723781329429,10.8,142.08,142.02,3.75]
[1723781329929,0.05295961,142.06,142.04,0.05091598]
[1723781330728,2.51625961,142.06,142.04,0.05091598]
[1723781334129,2.4635,142.05,142.04,0.05091598]
[1723781338546,15.35295961,142.06,142.04,0.05091598]
[1723781339044,17.81645961,142.06,142.04,0.05091598]
[1723781339341,15.35295961,142.06,142.04,0.05091598]
[1723781340738,2.4635,142.05,142.04,0.05091598]
[1723781341135,2.4635,142.05,141.98,16.95274669]
[1723781341136,10.8,142.05,141.93,4.5]
[1723781341342,13.2647,141.99,141.93,4.5]
[1723781341543,10.8,141.99,141.93,1.2642]
[1723781341743,2.465,141.97,141.93,1.2642]
[1723781341944,4.5,141.98,141.93,1.2642]
[1723781342340,10.84499651,141.97,141.94,0.05262894]
[1723781342545,2.4651,141.96,141.94,0.05262894]
[1723781342738,6.9651,141.96,141.94,0.05262894]
[1723781343045,2.4651,141.96,141.94,0.05262894]
[1723781343245,6.9651,141.96,141.94,0.05262894]
[1723781344142,4.5,141.96,141.94,0.05262894]
[1723781344344,0.04499651,141.97,141.95,10.8]
[1723781344539,3.52922359,142.16,141.96,10.8]
[1723781344540,4.5,142.04,141.96,10.8]
[1723781344743,4.5,142.04,141.99,13.2646]
[1723781345446,2.464,142.03,141.99,13.2646]
[1723781345646,2.51189682,142.03,142.0,0.05293885]
[1723781345949,2.464,142.02,142.0,0.05293885]
[1723781346450,0.04789682,142.03,142.0,0.05293885]
[1723781348843,2.51179682,142.03,142.0,0.05293885]
[1723781350348,0.04789682,142.03,142.0,10.85293885]
[1723781350544,0.04789682,142.03,142.0,13.54733885]
[1723781350745,0.04789682,142.03,142.0,16.01163885]
[1723781351152,0.04789682,142.03,142.0,13.54733885]
[1723781351449,2.51179682,142.03,142.0,13.54733885]
[1723781351744,0.04789682,142.03,142.0,13.54733885]
[1723781352544,0.04789682,142.03,142.0,2.74733885]
[1723781352743,10.84789682,142.03,142.0,0.05293885]
[1723781353349,54.0,142.01,141.94,0.1762]
[1723781353553,4.5,142.02,141.94,0.1762]
[1723781353554,1.2667,142.02,141.94,0.1762]
[1723781353849,13.2647,141.99,141.94,0.1762]
[1723781354045,10.8,141.99,141.94,0.1762]
[1723781354446,0.05345354,141.98,141.95,0.05007447]
[1723781355249,2.51825354,141.98,141.95,0.05007447]
[1723781358557,0.05345354,141.98,141.95,0.05007447]
[1723781358751,0.05345354,141.98,141.95,1.31037447]
[1723781359562,0.05345354,141.98,141.96,2.4649]
[1723781361760,0.05345354,141.98,141.97,2.4649]
[1723781364052,2.6739,142.09,141.96,28.3639]
[1723781364252,3.59687152,142.08,141.98,27.06]
[1723781364462,27.06,142.08,141.99,1.3196]
[1723781365061,2.4636,142.05,142.01,2.4642]
[1723781365361,2.51511631,142.05,142.02,0.0454394]
[1723781365862,0.05151631,142.05,142.02,2.5093394]
[1723781366563,0.05151631,142.05,142.03,2.4639]
[1723781367262,0.05151631,142.05,142.02,2.5094394]
[1723781367863,0.05151631,142.05,142.03,2.4638]
[1723781368056,0.05151631,142.05,142.02,0.0454394]
[1723781368762,0.05151631,142.05,142.02,27.1054394]
[1723781369157,0.05151631,142.05,142.02,31.6054394]
[1723781370160,0.05151631,142.05,142.04,2.4637]
[1723781383270,0.05151631,142.05,142.04,13.2737]
[1723781385676,0.05151631,142.05,142.02,12.1993394]
[1723781385875,0.05151631,142.05,142.02,1.3893394]
[1723781386377,0.05151631,142.05,142.03,2.4638]
[1723781386968,0.05151631,142.05,142.04,2.4637]
[1723781389678,0.05151631,142.05,142.04,2.6399]
[1723781389876,0.05151631,142.05,142.04,13.4499]
[1723781391775,0.05151631,142.05,142.04,2.6399]
[1723781391978,0.05151631,142.05,142.04,0.1762]
[1723781400281,10.86151631,142.05,142.04,0.1762]
[1723781401481,0.05151631,142.05,142.04,0.1762]
[1723781407390,0.05151631,142.05,142.04,2.4637]
[1723781408186,0.05151631,142.05,142.04,13.2737]
[1723781408390,0.05151631,142.05,142.04,14.526]
[1723781408587,0.05151631,142.05,142.04,15.7946]
[1723781410890,46.54237187,142.22,142.04,13.3309]
[1723781411087,46.54237187,142.22,142.08,10.81]
[1723781411088,10.81,142.15,142.08,10.81]
[1723781411283,13.2719,142.15,142.08,10.81]
[1723781411792,10.81,142.15,142.1,2.4626]
[1723781411993,0.05408093,142.13,142.1,2.51135114]
[1723781412290,10.81,142.11,141.92,3.26023249]
[1723781412483,43.24,142.15,141.98,3.46799683]
[1723781412484,10.81,142.04,141.98,3.46799683]
[1723781412684,10.81,142.04,141.97,10.81]
[1723781412891,10.81,142.04,142.01,2.4641]
[1723781413592,10.85561386,142.04,142.01,2.51330094]
[1723781414088,0.04561386,142.04,142.01,0.04920094]
[1723781415695,27.04,142.03,142.01,0.04920094]
[1723781416592,29.504,142.03,142.01,0.04920094]
[1723781419185,2.464,142.02,142.01,0.04920094]
[1723781419801,2.4644,142.0,141.94,1.2265]
[1723781419992,6.9644,142.0,141.94,1.2265]
[1723781420394,6.9644,142.0,141.96,2.465]
[1723781420794,0.0459433,141.99,141.97,0.05233512]
[1723781422094,0.0459433,141.99,141.97,2.51723512]
[1723781427597,0.0459433,141.99,141.98,2.4647]
[1723781429197,0.0459433,141.99,141.97,2.51723512]
[1723781430002,2.5105433,141.99,141.97,0.05233512]
[1723781430897,0.0459433,141.99,141.97,0.05233512]
[1723781431100,2.4647,141.98,141.97,0.05233512]
[1723781431698,2.2885,141.98,141.97,0.05233512]
[1723781433194,27.0859433,141.99,141.83,3.56820076]
[1723781433408,27.04,141.95,141.84,2.5754]
[1723781433604,4.5,141.94,141.84,2.5754]
[1723781433806,2.4661,141.91,141.86,2.4668]
[1723781434112,27.04,141.92,141.86,2.4668]
[1723781434409,2.4663,141.89,141.88,0.04615149]
[1723781434801,0.04965506,141.9,141.88,0.04615149]
[1723781435703,2.51585506,141.9,141.88,0.04615149]
[1723781437913,2.4663,141.89,141.88,0.04615149]
[1723781439611,20.0,141.88,141.61,3.26023249]
[1723781439920,27.04,141.89,141.77,28.2857]
[1723781439921,27.04,141.86,141.77,28.2857]
[1723781440218,27.04,141.86,141.78,2.4682]
[1723781440716,2.4676,141.82,141.81,0.04783083]
[1723781441311,6.9676,141.82,141.81,0.04783083]
[1723781445024,2.4682,141.79,141.75,2.4686]
[1723781445224,27.04,141.81,141.74,2.4688]
[1723781445725,27.04,141.81,141.74,6.02677072]
[1723781445726,2.4682,141.79,141.74,6.02677072]
[1723781445920,2.4682,141.79,141.74,2.4688]
[1723781446322,0.04829646,141.78,141.75,0.04737775]
[1723781446829,0.04829646,141.78,141.75,2.51607775]
[1723781447826,2.4685,141.77,141.75,0.04737775]
[1723781448026,0.04829646,141.78,141.75,0.04737775]
[1723781448527,0.04829646,141.78,141.75,2.51597775]
[1723781449423,0.04829646,141.78,141.75,0.04737775]
[1723781454631,2.51649646,141.78,141.75,0.04737775]
[1723781455434,13.35649646,141.78,141.75,0.04737775]
[1723781456535,0.04829646,141.78,141.75,10.88737775]
[1723781456731,0.04829646,141.78,141.75,0.04737775]
[1723781457233,0.04829646,141.78,141.75,2.51597775]
[1723781460431,0.04829646,141.78,141.76,2.4686]
[1723781461234,0.04829646,141.78,141.75,2.51607775]
[1723781462537,2.51649646,141.78,141.75,0.04737775]
[1723781462937,0.04829646,141.78,141.75,0.04737775]
[1723781463136,2.4684,141.77,141.75,0.04737775]
[1723781463840,10.84,141.76,141.75,0.04737775]
[1723781464133,13.3086,141.76,141.75,0.04737775]
[1723781468453,4.54829646,141.78,141.75,0.04737775]
[1723781469842,2.4684,141.77,141.75,0.04737775]
[1723781471344,2.4684,141.77,141.75,0.15757775]
[1723781472644,13.3084,141.77,141.75,0.15757775]
[1723781473643,10.84,141.77,141.75,0.15757775]
[1723781474635,2.51659646,141.78,141.75,0.15757775]
[1723781474842,13.35659646,141.78,141.75,0.15757775]
[1723781475541,2.4684,141.77,141.75,0.15757775]
[1723781478844,2.51659646,141.78,141.75,0.15757775]
[1723781480150,0.04829646,141.78,141.75,0.15757775]
[1723781481549,0.04829646,141.78,141.76,2.4684]
[1723781482151,2.51659646,141.78,141.75,0.15757775]
[1723781482350,13.35659646,141.78,141.75,0.15757775]
[1723781484556,0.04829646,141.78,141.75,2.62627775]
[1723781486649,0.04829646,141.78,141.75,2.51607775]
[1723781486846,0.04829646,141.78,141.76,2.4685]
[1723781487051,191.1286346,142.62,141.75,0.04737775]
[1723781487052,3.55283048,141.95,141.77,15.34]
[1723781487254,1.2608,141.92,141.81,10.84]
[1723781487458,13.3066,141.88,141.82,4.5]
[1723781487653,13.3066,141.88,141.83,3.46879463]
[1723781488053,2.4666,141.87,141.83,2.4673]
[1723781488256,2.51380451,141.87,141.84,0.04880538]
[1723781488860,2.4669,141.86,141.84,0.04880538]
[1723781489759,13.35390451,141.87,141.84,0.04880538]
[1723781490157,0.04720451,141.87,141.84,0.04880538]
[1723781490957,0.04720451,141.87,141.84,2.51590538]
[1723781491159,0.04720451,141.87,141.84,0.04880538]
[1723781492860,0.04720451,141.87,141.84,2.51590538]
[1723781494164,0.04720451,141.87,141.85,2.467]
[1723781495359,0.04720451,141.87,141.86,2.4668]
[1723781495565,10.84,141.92,141.86,15.34]
[1723781496066,10.84,141.92,141.89,2.4663]
[1723781496566,13.3058,141.92,141.89,4.5]
[1723781496771,13.35043919,141.92,141.89,4.55005423]
[1723781497670,13.35043919,141.92,141.89,0.05005423]
[1723781498764,13.306,141.91,141.89,0.05005423]
[1723781499866,10.84,141.91,141.89,0.05005423]
[1723781500870,10.88463919,141.92,141.89,0.05005423]
[1723781501066,0.04463919,141.92,141.89,10.89005423]
[1723781501366,2.4647,141.99,141.91,10.84]
[1723781501558,10.84,142.0,141.93,10.84]
[1723781501762,2.4648,141.98,141.94,2.4653]
[1723781502470,0.05015474,141.97,141.95,0.05222908]
[1723781502877,2.51505474,141.97,141.95,0.05222908]
[1723781503768,13.3051,141.96,141.95,0.05222908]
[1723781505979,2.4651,141.96,141.95,0.05222908]
[1723781510579,2.4651,141.96,141.95,0.16242908]
[1723781513387,27.12015474,141.97,141.86,2.5204]
[1723781513686,27.07,141.92,141.86,2.5204]
[1723781513887,2.4661,141.91,141.87,2.4665]
[1723781514487,0.04633874,141.9,141.88,0.04966866]
[1723781517083,2.51253874,141.9,141.88,0.04966866]
[1723781519389,2.4663,141.89,141.88,0.04966866]
[1723781520094,29.58253874,141.9,141.88,0.04966866]
[1723781521091,2.4663,141.89,141.88,0.04966866]
[1723781523292,2.4668,141.87,141.83,2.4672]
[1723781523597,27.07,141.84,141.73,27.07]
[1723781523797,6.9674,141.83,141.76,1.2405]
[1723781524195,6.9674,141.83,141.78,2.4682]
[1723781524395,0.05068441,141.81,141.78,2.51373825]
[1723781525195,0.05068441,141.81,141.79,2.468]
[1723781525391,0.05068441,141.81,141.78,0.04553825]
[1723781527505,0.05068441,141.81,141.79,2.4679]
[1723781528497,0.05068441,141.81,141.78,2.51363825]
[1723781529509,0.05068441,141.81,141.79,2.468]
[1723781530107,0.05068441,141.81,141.78,0.04553825]
[1723781531502,2.468,141.8,141.78,0.04553825]
[1723781532004,0.05068441,141.81,141.78,0.04553825]
[1723781532306,2.51838441,141.81,141.78,0.04553825]
[1723781532506,13.34838441,141.81,141.78,0.04553825]
[1723781532802,2.468,141.79,141.78,0.04553825]
[1723781536707,6.968,141.79,141.78,0.04553825]
[1723781537006,2.4684,141.78,141.71,13.4937]
[1723781537208,13.2984,141.78,141.71,13.4937]
[1723781537597,13.2984,141.78,141.73,2.4691]
[1723781538008,0.04593995,141.77,141.74,0.04511934]
[1723781538309,0.04593995,141.77,141.74,2.51401934]
[1723781539109,2.51433995,141.77,141.74,2.51401934]
[1723781539909,0.04593995,141.77,141.74,2.51401934]
[1723781541909,0.04593995,141.77,141.75,2.4686]
[1723781542111,0.04593995,141.77,141.74,0.04511934]
[1723781542307,0.04593995,141.77,141.74,2.51401934]
[1723781543203,2.51433995,141.77,141.74,0.04511934]
[1723781544313,2.51433995,141.77,141.74,3.58469761]
[1723781544815,2.51433995,141.77,141.74,6.05359761]
[1723781547709,2.4687,141.75,141.74,0.04511934]
[1723781547915,10.83,141.76,141.74,0.04511934]
[1723781548418,13.2987,141.76,141.74,0.04511934]
[1723781550213,2.4687,141.75,141.74,0.04511934]
[1723781555624,6.9687,141.75,141.74,0.04511934]
[1723781557719,4.54593995,141.77,141.74,0.04511934]
[1723781557923,0.04593995,141.77,141.74,0.04511934]
[1723781558220,4.5,141.83,141.74,0.04511934]
[1723781558413,4.5,141.83,141.76,10.83]
[1723781558619,4.5,141.83,141.77,1.2627]
[1723781558620,13.2978,141.81,141.77,1.2627]
[1723781559629,0.0517231,141.8,141.78,0.05209763]
[1723781565134,10.8817231,141.8,141.78,0.05209763]
[1723781565636,2.468,141.79,141.78,0.05209763]
[1723781566136,13.298,141.79,141.78,0.05209763]
[1723781566431,2.4689,141.75,141.73,1.318]
[1723781567333,10.83,141.74,141.7,70.81834727]
[1723781567831,10.83,141.74,141.73,0.04605209]
[1723781568730,13.299,141.74,141.73,0.04605209]
[1723781572140,2.51941724,141.75,141.73,0.04605209]
[1723781577642,13.2989,141.74,141.73,0.04605209]